{"text_format":"3","workbook":"xlsx","n_sheets":2,"sheets":["Лист1","Лист2"],"read":"whole","date_system":"1900"}

{"sheet":"Лист1","index":0,"n_rows":156,"n_cols":67,"rows_kept":156,"merged":[[0,0,4,0],[0,1,4,1],[0,2,0,7],[0,8,0,13],[0,14,0,19],[0,20,0,25],[0,27,0,32],[0,33,0,38],[0,39,0,44],[0,45,0,50],[0,52,0,54],[0,55,0,57],[0,58,0,60],[0,61,0,63],[0,70,0,89],[1,2,1,7],[1,8,1,13],[1,14,1,19],[1,20,1,25],[1,27,1,32],[1,33,1,38],[1,39,1,44],[1,45,1,50],[1,52,1,54],[1,55,1,57],[1,58,1,60],[1,61,1,63],[1,70,1,89],[2,2,2,4],[2,5,2,7],[2,8,2,10],[2,11,2,13],[2,14,2,16],[2,17,2,19],[2,20,2,22],[2,23,2,25],[2,27,2,32],[2,33,2,38],[2,39,2,44],[2,45,2,50],[2,52,2,54],[2,55,2,57],[2,58,2,60],[2,61,2,63],[3,2,3,4],[3,5,3,7],[3,8,3,10],[3,11,3,13],[3,14,3,16],[3,17,3,19],[3,20,3,22],[3,23,3,25],[3,27,3,32],[3,33,3,38],[3,39,3,44],[3,45,3,50],[3,52,3,54],[3,55,3,57],[3,58,3,60],[3,61,3,63],[5,0,5,1],[6,0,8,0],[9,0,13,0],[14,0,16,0],[17,0,19,0],[21,0,21,1],[22,0,24,0],[25,0,32,0],[33,0,36,0],[37,0,42,0],[43,0,45,0],[47,0,47,1],[48,0,49,0],[50,0,53,0],[54,0,56,0],[57,0,60,0],[61,0,63,0],[64,0,66,0],[67,0,69,0],[70,0,73,0],[74,0,76,0],[78,0,78,1],[79,0,84,0],[85,0,88,0],[89,0,92,0],[93,0,96,0],[98,0,98,1],[99,0,106,0],[107,0,112,0],[113,0,115,0],[116,0,118,0],[119,0,127,0],[129,0,129,1],[130,0,134,0],[135,0,140,0],[141,0,145,0],[146,0,148,0]]}
["Наименование компетенции","Геопространственные технологии","Модуль А. Инспектирование фасада здания",{"$nulls":5},"Модуль Б. Роботизированные технологии",{"$nulls":5},"Модуль В. Геодезические спутниковые технологии",{"$nulls":5},"Модуль Г. Полевое наземное лазерное сканирование",{"$nulls":6},"Модуль А. Инспектирование фасада здания",{"$nulls":5},"Модуль Б. Роботизированные технологии",{"$nulls":5},"Модуль В. Роботизированные технологии",{"$nulls":5},"Модуль Г. Полевое наземное лазерное сканирование",{"$nulls":6},"Модуль А. Инспектирование фасада здания",null,null,"Модуль Б. Роботизированные технологии",null,null,"Модуль В. Роботизированные технологии",null,null,"Модуль Г. Полевое наземное лазерное сканирование"]
[null,null,"Инвариант",{"$nulls":5},"Инвариант",{"$nulls":5},"Вариатив",{"$nulls":5},"Вариатив",{"$nulls":6},"Инвариант",{"$nulls":5},"Инвариант",{"$nulls":5},"Вариатив",{"$nulls":5},"Вариатив",{"$nulls":6},"Инвариант",null,null,"Инвариант",null,null,"Вариатив",null,null,"Вариатив"]
[null,null,"Профессиональный стандарт 10.001\nСпециалист в сфере кадастрового учета и государственной регистрации прав\n",null,null,"Профессиональный стандарт 10.001\nСпециалист в сфере кадастрового учета и государственной регистрации прав\n",null,null,"Профессиональный стандарт 10.001\nСпециалист в сфере кадастрового учета и государственной регистрации прав\n",null,null,"Профессиональный стандарт 10.001\nСпециалист в сфере кадастрового учета и государственной регистрации прав\n",null,null,"Профессиональный стандарт 10.001\nСпециалист в сфере кадастрового учета и государственной регистрации прав\n",null,null,"Профессиональный стандарт 10.001\nСпециалист в сфере кадастрового учета и государственной регистрации прав\n",null,null,"Профессиональный стандарт 10.001\nСпециалист в сфере кадастрового учета и государственной регистрации прав\n",null,null,"Профессиональный стандарт 10.001\nСпециалист в сфере кадастрового учета и государственной регистрации прав\n",{"$nulls":3},"Профессиональный стандарт 10.002\nСпециалист в области инженерно-геодезических изысканий для градостроительной деятельности\n",{"$nulls":5},"Профессиональный стандарт 10.002\nСпециалист в области инженерно-геодезических изысканий для градостроительной деятельности\n",{"$nulls":5},"Профессиональный стандарт 10.002\nСпециалист в области инженерно-геодезических изысканий для градостроительной деятельности\n",{"$nulls":5},"Профессиональный стандарт 10.002\nСпециалист в области инженерно-геодезических изысканий для градостроительной деятельности\n",{"$nulls":6},"Профессиональный стандарт 10.009 Землеустроитель",null,null,"Профессиональный стандарт 10.009 Землеустроитель",null,null,"Профессиональный стандарт 10.009 Землеустроитель",null,null,"Профессиональный стандарт 10.009 Землеустроитель"]
[null,null,"ОТФ код A.  Вспомогательная деятельность в сфере государственного кадастрового учета и (или) государственной регистрации прав на объекты недвижимости",null,null,"ОТФ код B. Предоставление сведений, содержащихся в ЕГРН, по запросу",null,null,"ОТФ код A.  Вспомогательная деятельность в сфере государственного кадастрового учета и (или) государственной регистрации прав на объекты недвижимости",null,null,"ОТФ код B. Предоставление сведений, содержащихся в ЕГРН, по запросу",null,null,"ОТФ код A.  Вспомогательная деятельность в сфере государственного кадастрового учета и (или) государственной регистрации прав на объекты недвижимости",null,null,"ОТФ код B. Предоставление сведений, содержащихся в ЕГРН, по запросу",null,null,"ОТФ код A.  Вспомогательная деятельность в сфере государственного кадастрового учета и (или) государственной регистрации прав на объекты недвижимости",null,null,"ОТФ код B. Предоставление сведений, содержащихся в ЕГРН, по запросу",{"$nulls":3},"ОТФ код А. Выполнение инженерно-геодезических изысканий в градостроительной деятельности",{"$nulls":5},"ОТФ код А. Выполнение инженерно-геодезических изысканий в градостроительной деятельности",{"$nulls":5},"ОТФ код А. Выполнение инженерно-геодезических изысканий в градостроительной деятельности",{"$nulls":5},"ОТФ код А. Выполнение инженерно-геодезических изысканий в градостроительной деятельности",{"$nulls":6},"ОТФ код А. Подготовка данных для составления землеустроительной документации",null,null,"ОТФ код А. Подготовка данных для составления землеустроительной документации",null,null,"ОТФ код А. Подготовка данных для составления землеустроительной документации",null,null,"ОТФ код А. Подготовка данных для составления землеустроительной документации"]
[null,null,"A/01.5 Консультационное обеспечение в сфере государственного кадастрового учета и (или) государственной регистрации прав на объекты недвижимости","A/02.5 Прием заявления о государственном кадастровом учете и (или) государственной регистрации прав на объекты недвижимости и прилагаемых к нему документов","A/03.5 Выдача (направление) документов по результатам государственного кадастрового учета и (или) государственной регистрации прав на объекты недвижимости","B/01.6 Прием запроса о предоставлении сведений, содержащихся в ЕГРН, и выдача документов заявителю","B/02.6 Рассмотрение запроса и документов, необходимых для предоставления сведений, содержащихся в ЕГРН","B/03.6 Обработка запроса о предоставлении сведений, содержащихся в ЕГРН","A/01.5 Консультационное обеспечение в сфере государственного кадастрового учета и (или) государственной регистрации прав на объекты недвижимости","A/02.5 Прием заявления о государственном кадастровом учете и (или) государственной регистрации прав на объекты недвижимости и прилагаемых к нему документов","A/03.5 Выдача (направление) документов по результатам государственного кадастрового учета и (или) государственной регистрации прав на объекты недвижимости","B/01.6 Прием запроса о предоставлении сведений, содержащихся в ЕГРН, и выдача документов заявителю","B/02.6 Рассмотрение запроса и документов, необходимых для предоставления сведений, содержащихся в ЕГРН","B/03.6 Обработка запроса о предоставлении сведений, содержащихся в ЕГРН","A/01.5 Консультационное обеспечение в сфере государственного кадастрового учета и (или) государственной регистрации прав на объекты недвижимости","A/02.5 Прием заявления о государственном кадастровом учете и (или) государственной регистрации прав на объекты недвижимости и прилагаемых к нему документов","A/03.5 Выдача (направление) документов по результатам государственного кадастрового учета и (или) государственной регистрации прав на объекты недвижимости","B/01.6 Прием запроса о предоставлении сведений, содержащихся в ЕГРН, и выдача документов заявителю","B/02.6 Рассмотрение запроса и документов, необходимых для предоставления сведений, содержащихся в ЕГРН","B/03.6 Обработка запроса о предоставлении сведений, содержащихся в ЕГРН","A/01.5 Консультационное обеспечение в сфере государственного кадастрового учета и (или) государственной регистрации прав на объекты недвижимости","A/02.5 Прием заявления о государственном кадастровом учете и (или) государственной регистрации прав на объекты недвижимости и прилагаемых к нему документов","A/03.5 Выдача (направление) документов по результатам государственного кадастрового учета и (или) государственной регистрации прав на объекты недвижимости","B/01.6 Прием запроса о предоставлении сведений, содержащихся в ЕГРН, и выдача документов заявителю","B/02.6 Рассмотрение запроса и документов, необходимых для предоставления сведений, содержащихся в ЕГРН","B/03.6 Обработка запроса о предоставлении сведений, содержащихся в ЕГРН",null,"A/01.5 Сбор материалов инженерных изысканий прошлых лет, фондовых материалов и архивных данных","A/02.5 Создание и развитие геодезических опорных и съемочных сетей на объектах градостроительной деятельности","A/03.5 Создание и обновление инженерно-топографических планов и выполнение съемки наземных и подземных инженерных коммуникаций, зданий и сооружений","A/04.5 Геодезическое обеспечение выполнения специальных видов инженерных изысканий в градостроительной деятельности","A/05.5 Выполнение инженерно-гидрографических работ в градостроительной деятельности","A/05.5 Выполнение камеральной обработки результатов инженерно-геодезических работ","A/01.5 Сбор материалов инженерных изысканий прошлых лет, фондовых материалов и архивных данных","A/02.5 Создание и развитие геодезических опорных и съемочных сетей на объектах градостроительной деятельности","A/03.5 Создание и обновление инженерно-топографических планов и выполнение съемки наземных и подземных инженерных коммуникаций, зданий и сооружений","A/04.5 Геодезическое обеспечение выполнения специальных видов инженерных изысканий в градостроительной деятельности","A/05.5 Выполнение инженерно-гидрографических работ в градостроительной деятельности","A/05.5 Выполнение камеральной обработки результатов инженерно-геодезических работ","A/01.5 Сбор материалов инженерных изысканий прошлых лет, фондовых материалов и архивных данных","A/02.5 Создание и развитие геодезических опорных и съемочных сетей на объектах градостроительной деятельности","A/03.5 Создание и обновление инженерно-топографических планов и выполнение съемки наземных и подземных инженерных коммуникаций, зданий и сооружений","A/04.5 Геодезическое обеспечение выполнения специальных видов инженерных изысканий в градостроительной деятельности","A/05.5 Выполнение инженерно-гидрографических работ в градостроительной деятельности","A/05.5 Выполнение камеральной обработки результатов инженерно-геодезических работ","A/01.5 Сбор материалов инженерных изысканий прошлых лет, фондовых материалов и архивных данных","A/02.5 Создание и развитие геодезических опорных и съемочных сетей на объектах градостроительной деятельности","A/03.5 Создание и обновление инженерно-топографических планов и выполнение съемки наземных и подземных инженерных коммуникаций, зданий и сооружений","A/04.5 Геодезическое обеспечение выполнения специальных видов инженерных изысканий в градостроительной деятельности","A/05.5 Выполнение инженерно-гидрографических работ в градостроительной деятельности","A/05.5 Выполнение камеральной обработки результатов инженерно-геодезических работ",null,"А/01.5 Выполнение обследований и изысканий при проведении землеустройства","А/02.5 Проведение оценки качества земель в целях получения информации об их пригодности для использования в сельском хозяйстве","А/03.5 Проведение инвентаризации земель","А/01.5 Выполнение обследований и изысканий при проведении землеустройства","А/02.5 Проведение оценки качества земель в целях получения информации об их пригодности для использования в сельском хозяйстве","А/03.5 Проведение инвентаризации земель","А/01.5 Выполнение обследований и изысканий при проведении землеустройства","А/02.5 Проведение оценки качества земель в целях получения информации об их пригодности для использования в сельском хозяйстве","А/03.5 Проведение инвентаризации земель","А/01.5 Выполнение обследований и изысканий при проведении землеустройства","А/02.5 Проведение оценки качества земель в целях получения информации об их пригодности для использования в сельском хозяйстве","А/03.5 Проведение инвентаризации земель",null,null,"% ПК, не учтенных в содержании модулей компетенции от общего количества ПК во ФГОС"]
["ФГОС СПО 05.02.01 Картография"]
["Вид деятельности 1. Анализ географических особенностей картографируемой территории","ПК 1.1. Анализировать факторы формирования и свойства сфер географической оболочки","учтена","учтена",{"$nulls":4},"учтена",null,"учтена","учтена","учтена","учтена",null,null,"учтена","учтена",{"$nulls":5},"учтена",{"$nulls":3},"учтена","учтена",{"$nulls":4},"учтена",{"$nulls":7},"учтена","учтена","учтена",null,null,"учтена","учтена","учтена",{"$nulls":4},"учтена",null,null,"учтена",null,"учтена",{"$nulls":6},{"$f":"COUNTIF(C7:BM7,\"учтена\")","v":22}]
[null,"ПК 1.2. Выполнять физико-географический анализ территории России и мира",{"$nulls":5},"учтена","учтена",null,"учтена",null,"учтена",{"$nulls":3},"учтена","учтена",{"$nulls":5},"учтена",{"$nulls":3},"учтена","учтена",{"$nulls":4},"учтена",{"$nulls":8},"учтена",{"$nulls":22},11]
[null,"ПК 1.3. Выполнять экономико-географический анализ территории России и мира",null,"учтена",{"$nulls":8},"учтена",{"$nulls":3},"учтена","учтена",{"$nulls":15},"учтена",{"$nulls":8},"учтена",{"$nulls":22},6]
["Вид деятельности 2. Создание общегеографических карт и атласов","ПК 2.1. Проводить топографические съемки местности и обрабатывать данные полевых измерений",null,null,"учтена",null,"учтена",{"$nulls":5},"учтена","учтена","учтена",{"$nulls":4},"учтена",{"$nulls":16},"учтена","учтена",{"$nulls":4},"учтена",{"$nulls":4},"учтена",null,null,"учтена",null,"учтена",{"$nulls":4},"учтена",{"$nulls":7},13]
[null,"ПК 2.2. Строить геодезическую и математическую основы карт",{"$nulls":4},"учтена",{"$nulls":6},"учтена",{"$nulls":23},"учтена",null,null,"учтена",{"$nulls":6},"учтена",{"$nulls":4},"учтена",{"$nulls":12},6]
[null,"ПК 2.3. Выполнять редакционно-подготовительные и составительские работы при создании топографических карт и планов",null,null,"учтена",null,"учтена","учтена",{"$nulls":5},"учтена",{"$nulls":23},"учтена","учтена",null,"учтена",{"$nulls":9},"учтена",{"$nulls":14},8]
[null,"ПК 2.4. Обновлять топографические карты и планы",{"$nulls":6},"учтена","учтена",null,"учтена",null,"учтена",{"$nulls":10},"учтена","учтена",{"$nulls":11},"учтена","учтена",null,"учтена",{"$nulls":6},"учтена","учтена",{"$nulls":16},11]
[null,"ПК 2.5. Выполнять редакционно-подготовительные и составительские работы при создании общегеографических мелкомасштабных карт и атласов",null,"учтена","учтена","учтена","учтена","учтена",{"$nulls":3},"учтена","учтена","учтена",{"$nulls":10},"учтена","учтена",{"$nulls":13},"учтена","учтена",{"$nulls":7},"учтена",{"$nulls":16},13]
["Вид деятельности 3. Создание тематических и специальных карт и атласов","ПК 3.1. Разрабатывать природные и экологические карты",null,"учтена","учтена",null,null,"учтена",{"$nulls":3},"учтена",{"$nulls":9},"учтена",{"$nulls":7},"учтена",null,null,"учтена",{"$nulls":14},"учтена","учтена",{"$nulls":11},"учтена",{"$nulls":4},10]
[null,"ПК 3.2. Разрабатывать социально-экономические и специальные карты",{"$nulls":4},"учтена",{"$nulls":12},"учтена",null,"учтена",{"$nulls":7},"учтена",null,null,"учтена",{"$nulls":27},"учтена",{"$nulls":4},6]
[null,"ПК 3.3. Формировать базы пространственных данных","учтена",{"$nulls":12},"учтена","учтена",{"$nulls":12},"учтена",{"$nulls":30},"учтена",{"$nulls":4},5]
["Вид деятельности 4. Выполнение оформительских и издательских картографических работ.","ПК 4.1. Оформлять карты и атласы",{"$nulls":5},"учтена",{"$nulls":4},"учтена","учтена",{"$nulls":15},"учтена",{"$nulls":19},"учтена",null,null,"учтена",null,null,"учтена","учтена",{"$nulls":3},"учтена",{"$nulls":4},9]
[null,"ПК 4.2. Создавать экспериментально-художественные (дизайнерские) картографические произведения",null,null,"учтена","учтена",null,"учтена","учтена","учтена","учтена",null,"учтена","учтена",{"$nulls":19},"учтена",null,null,"учтена",{"$nulls":7},"учтена",{"$nulls":4},"учтена",{"$nulls":10},"учтена",{"$nulls":4},13]
[null,"ПК 4.3. Выполнять допечатную подготовку карт и атласов с использованием современного программного обеспечения","учтена",{"$nulls":3},"учтена",null,"учтена",null,null,"учтена","учтена","учтена",{"$nulls":3},"учтена","учтена","учтена","учтена",null,null,"учтена","учтена","учтена",{"$nulls":4},"учтена","учтена","учтена","учтена",null,null,"учтена",null,null,"учтена","учтена","учтена",{"$nulls":6},"учтена","учтена","учтена",null,"учтена",{"$nulls":3},"учтена",{"$nulls":3},"учтена","учтена","учтена","учтена",null,30,{"$f":"(COUNTIF(BN7:BN20,\"0\")*100)/COUNTA(BN7:BN20)","v":{"v":0,"d":"0.00"}}]
[]
["ФГОС СПО 08.02.01 Строительство и эксплуатация зданий и сооружений "]
["Вид деятельности 1. Составление и оформление проектной документации объекта капитального строительства","ПК 1.1. Выбирать типовые конструктивные решения строительных конструкций зданий",null,"учтена",null,"учтена",null,null,"учтена",null,null,"учтена","учтена","учтена","учтена",{"$nulls":5},"учтена","учтена","учтена",{"$nulls":4},"учтена","учтена","учтена",{"$nulls":3},"учтена","учтена","учтена",{"$nulls":9},"учтена","учтена",{"$nulls":3},"учтена",null,null,"учтена","учтена","учтена","учтена","учтена","учтена","учтена",{"$nulls":5},{"$f":"COUNTIF(C23:BM23,\"учтена\")","v":26}]
[null,"ПК 1.2. Выполнять стандартные (типовые) расчеты строительных конструкций",{"$nulls":3},"учтена",{"$nulls":8},"учтена",{"$nulls":14},"учтена",{"$nulls":7},"учтена","учтена",{"$nulls":6},"учтена",{"$nulls":3},"учтена","учтена",{"$nulls":14},8]
[null,"ПК 1.3. Разрабатывать архитектурно-строительные чертежи с использованием средств автоматизированного проектирования ",{"$nulls":12},"учтена",{"$nulls":14},"учтена",{"$nulls":35},2]
["Вид деятельности 2. Организация и управление технологическими процессами на объектах капитального строительств ","ПК 2.1. Разрабатывать проект производства работ с применением информационных технологий",{"$nulls":10},"учтена","учтена",{"$nulls":15},"учтена",{"$nulls":14},"учтена",{"$nulls":20},4]
[null,"ПК 2.2. Организовывать подготовку строительной площадки и участков к производству строительных работ",{"$nulls":6},"учтена",null,null,"учтена","учтена","учтена",{"$nulls":15},"учтена",{"$nulls":14},"учтена",{"$nulls":20},6]
[null,"ПК 2.3. Организовывать строительные работы",{"$nulls":6},"учтена",null,null,"учтена","учтена","учтена",{"$nulls":3},"учтена",{"$nulls":11},"учтена","учтена","учтена","учтена",{"$nulls":11},"учтена",{"$nulls":8},"учтена",null,"учтена",null,"учтена","учтена",{"$nulls":6},14]
[null,"ПК 2.4. Проводить оперативный учет объемов выполняемых работ и расходов материальных ресурсов",{"$nulls":6},"учтена",null,null,"учтена","учтена","учтена",null,null,"ё","учтена",null,null,"учтена",null,"учтена",{"$nulls":6},"учтена","учтена","учтена","учтена",{"$nulls":11},"учтена",{"$nulls":8},"учтена","учтена",null,null,"учтена","учтена",{"$nulls":6},16]
[null,"ПК 2.5. Контролировать качество выполняемых строительных работ",{"$nulls":6},"учтена",null,null,"учтена","учтена","учтена",{"$nulls":3},"учтена",null,null,"учтена",null,"учтена","учтена","учтена","учтена",{"$nulls":4},"учтена","учтена","учтена",{"$nulls":11},"учтена",{"$nulls":3},"учтена","учтена","учтена",{"$nulls":7},"учтена",{"$nulls":6},18]
[null,"ПК 2.6. Контролировать соблюдение требований охраны труда, безопасности жизнедеятельности и защиту окружающей среды при выполнении строительных работ наобъектах капитального строительства, ремонта и реконструкции зданий",{"$nulls":4},"учтена","учтена",null,null,"учтена",null,null,"учтена","учтена",{"$nulls":8},"учтена",{"$nulls":8},"учтена",{"$nulls":11},"учтена",{"$nulls":3},"учтена","учтена","учтена",{"$nulls":7},"учтена",{"$nulls":6},12]
[null,"ПК 2.7. Выполнять геодезическое обеспечение и камеральную обработку результатов инженерно-геодезических изысканий при строительстве и эксплуатации зданий и сооружений ",{"$nulls":4},"учтена",{"$nulls":3},"учтена",null,null,"учтена","учтена",{"$nulls":3},"учтена","учтена",{"$nulls":3},"учтена",{"$nulls":8},"учтена","учтена",null,null,"учтена",{"$nulls":5},"учтена","учтена",null,null,"учтена",null,null,"учтена","учтена",{"$nulls":7},"учтена",{"$nulls":6},16]
[null,"ПК 2.8. Вести складское хозяйство строительной организации",null,null,"учтена","учтена",null,"учтена",null,null,"учтена",null,null,"учтена","учтена",{"$nulls":3},"учтена","учтена",{"$nulls":3},"учтена",{"$nulls":11},"учтена","учтена",{"$nulls":5},"учтена","учтена",{"$nulls":6},"учтена",{"$nulls":7},"учтена","учтена",{"$nulls":5},16]
["Вид деятельности 3. Обеспечение деятельности структурных подразделений при выполнении строительных работ на объектах капитального строительства, ремонта и реконструкции зданий","ПК 3.1. Обеспечивать участки организационно-технологической и исполнительной документацией при проведении строительных работ на объектах капитального строительства, ремонта и реконструкции зданий",null,"учтена","учтена","учтена","учтена","учтена","учтена","учтена","учтена",null,null,"учтена","учтена",{"$nulls":3},"учтена","учтена",{"$nulls":12},"учтена",null,"учтена",{"$nulls":17},"учтена","учтена","учтена","учтена","учтена","учтена","учтена","учтена",{"$nulls":5},22]
[null,"ПК 3.2. Осуществлять ведение текущей, исполнительной и учетной документации производства видов работ объекта капитального строительства, в том числе с использованием сметных нормативов ",null,"учтена",{"$nulls":4},"учтена","учтена","учтена",null,null,"учтена",{"$nulls":4},"учтена","учтена",{"$nulls":4},"учтена","учтена",{"$nulls":4},"учтена",null,null,"учтена","учтена",{"$nulls":17},"учтена","учтена",{"$nulls":11},14]
[null,"ПК 3.3. Выполнять расчеты стоимости строительно-монтажных работ, производимых строительной организацией по объекту капитального строительства",null,"учтена",{"$nulls":11},"учтена","учтена",{"$nulls":7},"учтена",null,null,"учтена","учтена",{"$nulls":4},"учтена",{"$nulls":10},"учтена","учтена",null,null,"учтена","учтена",{"$nulls":3},"учтена",{"$nulls":8},"учтена","учтена",null,14]
[null,"ПК 3.4. Осуществлять подготовку документации для сдачи объекта капитального строительства (ремонта и реконструкции зданий) в эксплуатацию или для приемки строительных работ, предусмотренных проектной и рабочей документацией ","учтена","учтена",{"$nulls":20},"учтена",null,null,"учтена","учтена",{"$nulls":16},"учтена","учтена",{"$nulls":6},"учтена",{"$nulls":8},"учтена",null,null,9]
["Вид деятельности 4. Организация работ при эксплуатации зданий и сооружений ","ПК 4.1. Осуществлять выполнение мероприятий по технической эксплуатации зданий и сооружений, в том числе по обеспечению их безопасности ",{"$nulls":9},"учтена","учтена",null,"учтена",null,"учтена",{"$nulls":3},"учтена",{"$nulls":12},"учтена",{"$nulls":27},"учтена","учтена",null,null,8]
[null,"ПК 4.2. Обеспечивать выполнение ремонтно-строительных работ при эксплуатации зданий и сооружений",{"$nulls":3},"учтена","учтена","учтена","учтена","учтена",null,null,"учтена",null,"учтена","учтена","учтена",{"$nulls":3},"учтена",{"$nulls":4},"учтена",{"$nulls":12},"учтена",{"$nulls":5},"учтена",{"$nulls":5},"учтена",{"$nulls":14},14]
[null,"ПК 4.3. Выполнять диагностику и оценку технического состояния отдельных конструктивных элементов зданий",{"$nulls":5},"учтена",{"$nulls":3},"учтена","учтена",{"$nulls":9},"учтена",{"$nulls":21},"учтена",{"$nulls":5},"учтена",null,"учтена",{"$nulls":12},7]
[null,"ПК 4.4. Выполнять обследование систем инженерно-технического обеспечения зданий и сооружений для назначения текущего и капитального ремонтов ",{"$nulls":3},"учтена","учтена",{"$nulls":4},"учтена","учтена","учтена",{"$nulls":8},"учтена",{"$nulls":15},"учтена",{"$nulls":4},"учтена","учтена",{"$nulls":9},"учтена","учтена","учтена","учтена","учтена","учтена","учтена",{"$nulls":4},16]
[null,"ПК 4.5. Осуществлять выполнение работ по благоустройству\nтерритории гражданских зданий","учтена","учтена","учтена",null,null,"учтена",{"$nulls":9},"учтена","учтена",null,"учтена",{"$nulls":12},"учтена","учтена","учтена","учтена","учтена",null,"учтена","учтена","учтена","учтена","учтена",null,"учтена",{"$nulls":6},"учтена",null,"учтена","учтена","учтена","учтена","учтена","учтена","учтена",{"$nulls":4},26]
[null,"ПК 4.6. Координировать работы подрядных организаций и рабочего персонала по санитарному содержанию и уборке помещений и территорий при строительстве гражданских зданий ",null,"учтена","учтена",null,null,"учтена",{"$nulls":3},"учтена","учтена","учтена",{"$nulls":6},"учтена",{"$nulls":14},"учтена",{"$nulls":4},"учтена",{"$nulls":5},"учтена",{"$nulls":3},"учтена",null,null,"учтена","учтена","учтена","учтена","учтена","учтена","учтена","учтена",{"$nulls":4},19]
["Вид деятельности 5. Техническое сопровождение информационного моделирования объекта капитального строительства ","ПК 5.1. Выполнять адаптацию и сопровождение программных средств в соответствии со стандартами применения технологий информационной модели объекта капитального строительства в организации",{"$nulls":6},"учтена",{"$nulls":4},"учтена",{"$nulls":11},"учтена",null,"учтена","учтена",{"$nulls":11},"учтена",{"$nulls":5},"учтена",{"$nulls":3},"учтена",null,"учтена","учтена","учтена","учтена",{"$nulls":9},12]
[null,"ПК 5.2. Выполнять подготовку контента электронных справочников библиотек компонентов и баз данных для информационного моделирования объекта капитального строительства в соответствии с заданием",{"$nulls":3},"учтена","учтена","учтена","учтена",{"$nulls":4},"учтена",{"$nulls":3},"учтена","учтена",{"$nulls":6},"учтена",null,"учтена","учтена",{"$nulls":7},"учтена","учтена","учтена","учтена",{"$nulls":6},"учтена",{"$nulls":6},"учтена","учтена","учтена",{"$nulls":5},"учтена","учтена","учтена",null,21]
[null,"ПК 5.3. Осуществлять автоматизацию и сопровождение решения задач формирования, анализа и передачи данных об объекте капитального строительства средствами программ информационного моделирования","учтена",null,null,"учтена","учтена",null,"учтена",{"$nulls":4},"учтена","учтена",{"$nulls":10},"учтена",null,"учтена","учтена",{"$nulls":4},"учтена","учтена",null,"учтена","учтена","учтена","учтена",null,"учтена","учтена","учтена","учтена","учтена","учтена",{"$nulls":6},"учтена","учтена","учтена",{"$nulls":5},"учтена","учтена","учтена",null,27,{"$f":"(COUNTIF(BN23:BN46,\"0\")*100)/COUNTA(BN23:BN46)","v":{"v":0,"d":"0.00"}}]
[]
["ФГОС СПО 08.02.12 Строительство и эксплуатация автомобильных дорог, аэродромов и городских путей сообщения "]
["Вид деятельности 1. Выполнение работ по производству дорожно-строительных материалов ","ПК 1.1. Выполнять работы по производству дорожно-строительных материалов","учтена","учтена","учтена","учтена","учтена","учтена",{"$nulls":4},"учтена","учтена","учтена",{"$nulls":3},"учтена","учтена",{"$nulls":12},"учтена",{"$nulls":3},"учтена","учтена","учтена","учтена","учтена","учтена","учтена","учтена","учтена","учтена","учтена",{"$nulls":6},"учтена","учтена","учтена",{"$nulls":4},"учтена","учтена",{"$nulls":3},{"$f":"COUNTIF(C49:BM49,\"учтена\")","v":28}]
[null,"ПК 1.2. Осуществлять входной и приемочный качества дорожно-строительных материалов","учтена","учтена","учтена",null,null,"учтена",{"$nulls":4},"учтена",null,"учтена",{"$nulls":17},"учтена",{"$nulls":3},"учтена","учтена","учтена","учтена","учтена","учтена","учтена","учтена","учтена","учтена","учтена",{"$nulls":6},"учтена","учтена","учтена",{"$nulls":4},"учтена","учтена","учтена","учтена",null,25]
["Вид деятельности 2. Проектирование конструктивных элементов автомобильных дорог и аэродромов (по выбору)\n","ПК 2.1. Проводить геодезические работы в процессе изыскания автомобильных дорог и аэродромов",{"$nulls":5},"учтена",{"$nulls":4},"учтена",{"$nulls":14},"учтена","учтена","учтена",null,null,"учтена",{"$nulls":3},"учтена","учтена","учтена","учтена","учтена","учтена","учтена","учтена","учтена","учтена","учтена",{"$nulls":6},"учтена",{"$nulls":6},"учтена","учтена","учтена","учтена",null,22]
[null,"ПК 2.2. Проводить геологические работы в процессе изыскания автомобильных дорог и аэродромов",{"$nulls":3},"учтена","учтена","учтена",{"$nulls":7},"учтена","учтена","учтена","учтена","учтена",{"$nulls":7},"учтена","учтена","учтена",null,null,"учтена",{"$nulls":10},"учтена","учтена","учтена","учтена","учтена","учтена","учтена","учтена",null,"учтена","учтена",{"$nulls":6},"учтена","учтена","учтена","учтена",null,26]
[null,"ПК 2.3. Проектировать конструктивные элементы автомобильных дорог и аэродромов",{"$nulls":3},"учтена",{"$nulls":7},"учтена",null,"учтена","учтена",{"$nulls":29},"учтена","учтена","учтена","учтена","учтена",null,"учтена","учтена",{"$nulls":6},"учтена",{"$nulls":4},12]
[null,"ПК 2.4. Проектировать транспортные сооружения и их элементы на автомобильных дорогах и аэродромах",{"$nulls":11},"учтена",{"$nulls":3},"учтена",null,null,"учтена","учтена",{"$nulls":8},"учтена",{"$nulls":15},"учтена","учтена","учтена","учтена","учтена",null,"учтена","учтена",null,null,"учтена","учтена","учтена","учтена","учтена",{"$nulls":4},17]
["Вид деятельности 3. Выполнение работ по строительству автомобильных дорог и аэродромов (по выбору)","ПК 3.1. Выполнять технологические процессы строительства автомобильных дорог и аэродромов",{"$nulls":3},"учтена",null,null,"учтена",null,"учтена","учтена","учтена","учтена",{"$nulls":7},"учтена","учтена",{"$nulls":7},"учтена",{"$nulls":15},"учтена","учтена","учтена","учтена","учтена",null,"учтена","учтена",{"$nulls":11},16]
[null,"ПК 3.2. Осуществлять контроль качества технологических процессов и приемки выполненных работ по строительству автомобильных дорог и аэродромов",{"$nulls":6},"учтена",null,"учтена","учтена","учтена",{"$nulls":4},"учтена",{"$nulls":7},"учтена",{"$nulls":4},"учтена",{"$nulls":15},"учтена","учтена","учтена","учтена","учтена",null,"учтена","учтена",{"$nulls":11},14]
[null,"ПК 3.3. Выполнять расчеты технико-экономических показателей строительства автомобильных дорог и аэродромов",{"$nulls":3},"учтена","учтена","учтена","учтена",{"$nulls":5},"учтена","учтена","учтена","учтена",{"$nulls":9},"учтена","учтена","учтена","учтена",{"$nulls":3},"учтена",{"$nulls":11},"учтена","учтена",{"$nulls":17},15]
["Вид деятельности 4. Выполнение работ по эксплуатации автомобильных дорог и аэродромов (по выбору)","ПК 4.1. Выполнять работы по содержанию и ремонту автомобильных дорог и аэродромов",{"$nulls":3},"учтена",null,"учтена","учтена",{"$nulls":25},"учтена","учтена",{"$nulls":10},"учтена","учтена",{"$nulls":17},7]
[null,"ПК 4.2. Осуществлять контроль качества технологических процессов и приемки выполненных работ по содержанию и ремонту автомобильных дорог и аэродромов","учтена","учтена","учтена","учтена",null,"учтена",null,"учтена",{"$nulls":3},"учтена","учтена","учтена","учтена","учтена","учтена",{"$nulls":6},"учтена",{"$nulls":8},"учтена",null,null,"учтена","учтена","учтена","учтена","учтена","учтена",{"$nulls":3},"учтена","учтена",{"$nulls":17},22]
[null,"ПК 4.3. Выполнять технологические процессы по ремонту автомобильных дорог и аэродромов","учтена","учтена","учтена","учтена","учтена","учтена",null,"учтена",{"$nulls":5},"учтена","учтена","учтена","учтена",{"$nulls":6},"учтена",{"$nulls":6},"учтена",{"$nulls":5},"учтена","учтена","учтена","учтена","учтена","учтена","учтена","учтена","учтена","учтена",{"$nulls":17},23]
[null,"ПК 4.4. Выполнять расчеты технико-экономических показателей ремонта автомобильных дорог и аэродромов ",null,null,"учтена",null,null,"учтена",null,"учтена",{"$nulls":4},"учтена",{"$nulls":23},"учтена","учтена","учтена","учтена","учтена","учтена","учтена","учтена","учтена","учтена",{"$nulls":17},14]
["Вид деятельности 5. Организация выполнения работ по строительству и эксплуатации автомобильных дорог и аэродромов (по выбору)","ПК 5.1. Планировать, оптимизировать и распределять производственные задания между бригадами, звеньями и отдельными работниками ",null,null,"учтена",{"$nulls":10},"учтена","учтена","учтена","учтена","учтена",null,"учтена","учтена","учтена","учтена",{"$nulls":17},"учтена","учтена","учтена","учтена","учтена","учтена",{"$nulls":17},16]
[null,"ПК 5.2. Контролировать выполнение производственных задач бригадами, звеньями и отдельными работниками",{"$nulls":6},"учтена",{"$nulls":4},"учтена",{"$nulls":4},"учтена","учтена",{"$nulls":4},"учтена",{"$nulls":6},"учтена",{"$nulls":22},"учтена","учтена",{"$nulls":9},8]
[null,"ПК 5.3. Осуществлять анализ строительных процессов и производственных операций на строительном участке ","учтена","учтена",{"$nulls":3},"учтена","учтена",null,"учтена","учтена","учтена","учтена",{"$nulls":10},"учтена",{"$nulls":4},"учтена","учтена","учтена",{"$nulls":5},"учтена",{"$nulls":16},"учтена","учтена",{"$nulls":9},15]
["Вид деятельности 2. Проектирование конструктивных элементов городских путей сообщения (по выбору)","ПК 2.1. Проводить геодезические работы в процессе изыскания городских путей сообщения",{"$nulls":3},"учтена","учтена",null,"учтена",null,"учтена","учтена","учтена","учтена",{"$nulls":23},"учтена",{"$nulls":16},"учтена","учтена",{"$nulls":9},10]
[null,"ПК 2.2. Проводить геологические работы в процессе изыскания городских путей сообщения",{"$nulls":3},"учтена",{"$nulls":13},"учтена",{"$nulls":17},"учтена",{"$nulls":16},"учтена","учтена",{"$nulls":9},5]
[null,"ПК 2.3. Проектировать конструктивные элементы городских путей сообщения","учтена","учтена",{"$nulls":14},"учтена","учтена","учтена",null,"учтена",{"$nulls":14},"учтена","учтена","учтена","учтена","учтена",{"$nulls":12},"учтена","учтена",{"$nulls":9},13]
["Вид деятельности 3. Выполнение работ по строительству городских путей сообщения (по выбору)","ПК 3.1. Выполнять технологические процессы строительства городских путей сообщения","учтена",{"$nulls":15},"учтена","учтена","учтена",{"$nulls":16},"учтена","учтена","учтена","учтена","учтена",{"$nulls":6},"учтена","учтена","учтена",null,"учтена","учтена","учтена","учтена",{"$nulls":9},16]
[null,"ПК 3.2. Осуществлять контроль качества технологических процессов и приемки выполненных работ по строительству городских путей сообщения ",null,"учтена",null,"учтена",null,"учтена",{"$nulls":5},"учтена",{"$nulls":6},"учтена",null,"учтена",{"$nulls":9},"учтена",{"$nulls":15},"учтена","учтена",{"$nulls":15},9]
[null,"ПК 3.3. Выполнять расчеты технико-экономических показателей строительства городских путей сообщения ",null,"учтена",{"$nulls":9},"учтена",{"$nulls":34},"учтена","учтена",{"$nulls":11},"учтена","учтена","учтена",null,7]
["Вид деятельности 4. Выполнение работ по эксплуатации городских путей сообщения (по выбору)\n","ПК 4.1. Выполнять работы по содержанию и ремонту городских путей сообщения",{"$nulls":4},"учтена",null,"учтена","учтена",null,null,"учтена","учтена","учтена",null,null,"учтена",{"$nulls":30},"учтена","учтена",{"$nulls":8},"учтена","учтена","учтена","учтена","учтена","учтена",null,15]
[null,"ПК 4.2. Осуществлять контроль качества технологических процессов и приемки выполненных работ по содержанию городских путей сообщения",{"$nulls":4},"учтена",null,"учтена",{"$nulls":5},"учтена",null,null,"учтена",{"$nulls":30},"учтена","учтена",{"$nulls":13},"учтена",null,7]
[null,"ПК 4.3. Выполнять технологические процессы по ремонту городских путей сообщения",{"$nulls":4},"учтена","учтена",{"$nulls":35},"учтена","учтена","учтена","учтена","учтена","учтена","учтена",{"$nulls":13},"учтена",null,10]
[null,"ПК 4.4. Выполнять расчеты технико-экономических показателей ремонта городских путей сообщения",null,null,"учтена",null,null,"учтена","учтена",{"$nulls":18},"учтена","учтена","учтена","учтена","учтена",{"$nulls":11},"учтена","учтена","учтена","учтена","учтена","учтена","учтена",{"$nulls":13},"учтена",null,16]
["Вид деятельности 5. Организация выполнения работ по строительству и эксплуатации городских путей сообщения (по выбору)","ПК 5.1. Планировать, оптимизировать и распределять производственные задания между бригадами, звеньями и отдельными работниками ","учтена",null,"учтена",null,null,"учтена","учтена","учтена",{"$nulls":15},"учтена",null,"учтена","учтена","учтена","учтена","учтена","учтена",{"$nulls":3},"учтена","учтена","учтена","учтена","учтена","учтена","учтена","учтена","учтена","учтена","учтена",{"$nulls":6},"учтена","учтена","учтена",{"$nulls":7},"учтена",null,27]
[null,"ПК 5.2. Контролировать выполнение производственных задач бригадами, звеньями и отдельными работниками","учтена",null,"учтена",{"$nulls":6},"учтена","учтена","учтена",null,"учтена","учтена","учтена",{"$nulls":3},"учтена",{"$nulls":5},"учтена",{"$nulls":3},"учтена","учтена",{"$nulls":3},"учтена","учтена","учтена","учтена","учтена","учтена","учтена",{"$nulls":10},"учтена","учтена","учтена","учтена","учтена",{"$nulls":5},"учтена",null,25]
[null,"ПК 5.3. Осуществлять анализ строительных процессов и производственных операций на строительном участке","учтена","учтена",null,null,"учтена",{"$nulls":4},"учтена","учтена","учтена","учтена","учтена","учтена","учтена",null,null,"учтена","учтена",{"$nulls":5},"учтена",{"$nulls":3},"учтена","учтена","учтена","учтена",{"$nulls":5},"учтена","учтена","учтена",{"$nulls":10},"учтена","учтена","учтена","учтена","учтена","учтена","учтена","учтена","учтена","учтена","учтена",null,31,{"$f":"(COUNTIF(BN49:BN77,\"0\")*100)/COUNTA(BN49:BN77)","v":{"v":0,"d":"0.00"}}]
[{"$nulls":27},"учтена",{"$nulls":3},"учтена","учтена"]
["ФГОС СПО 21.02.19 Землеустройство"]
["Вид деятельности 1. Подготовка, планирование и выполнение полевых и камеральных работ по инженерно-геодезическим изысканиям ","ПК 1.1. Выполнять полевые геодезические работы на производственном участке","учтена",{"$nulls":3},"учтена","учтена","учтена","учтена","учтена",null,null,"учтена","учтена","учтена",{"$nulls":7},"учтена","учтена",null,null,"учтена","учтена","учтена","учтена",null,null,"учтена","учтена",{"$nulls":5},"учтена","учтена","учтена",{"$nulls":10},"учтена","учтена","учтена",null,null,"учтена","учтена","учтена","учтена",{"$nulls":3},{"$f":"COUNTIF(C80:BM80,\"учтена\")","v":27}]
[null,"ПК 1.2. Выполнять топографические съемки различных масштабов","учтена",{"$nulls":3},"учтена","учтена","учтена","учтена","учтена",null,null,"учтена","учтена","учтена",{"$nulls":7},"учтена",{"$nulls":3},"учтена","учтена","учтена","учтена",null,null,"учтена","учтена",{"$nulls":5},"учтена","учтена","учтена",{"$nulls":10},"учтена","учтена","учтена",null,null,"учтена","учтена","учтена","учтена",{"$nulls":3},26]
[null,"ПК 1.3. Выполнять графические работы по составлению картографических материалов","учтена",{"$nulls":3},"учтена","учтена",{"$nulls":5},"учтена",{"$nulls":5},"учтена",{"$nulls":13},"учтена","учтена",{"$nulls":5},"учтена","учтена","учтена",{"$nulls":10},"учтена","учтена","учтена",null,null,"учтена","учтена","учтена","учтена",{"$nulls":3},17]
[null,"ПК 1.4. Выполнять кадастровые съемки и кадастровые работы по формированию земельных участков",{"$nulls":4},"учтена","учтена",{"$nulls":6},"учтена",{"$nulls":3},"учтена","учтена",{"$nulls":34},"учтена","учтена",{"$nulls":9},7]
[null,"ПК 1.5. Выполнять дешифрирование аэро- и космических снимков для получения информации об объектах недвижимости",{"$nulls":4},"учтена","учтена",{"$nulls":3},"учтена","учтена",{"$nulls":4},"учтена",null,"учтена",{"$nulls":11},"учтена","учтена",{"$nulls":21},"учтена","учтена",{"$nulls":6},"учтена","учтена",null,12]
[null,"ПК 1.6. Применять аппаратно-программные средства для расчетов и составления топографических, межевых планов",{"$nulls":6},"учтена","учтена","учтена","учтена","учтена",{"$nulls":4},"учтена",null,null,"учтена",null,"учтена","учтена",{"$nulls":30},"учтена","учтена","учтена","учтена",{"$nulls":4},"учтена","учтена",null,15]
["Вид деятельности 2. Проведение технической инвентаризации и технической оценки объектов недвижимости ","ПК 2.1. Проводить техническую инвентаризацию объектов недвижимости","учтена","учтена",{"$nulls":4},"учтена",{"$nulls":8},"учтена",{"$nulls":36},"учтена",{"$nulls":3},"учтена",{"$nulls":6},6]
[null,"ПК 2.2. Выполнять градостроительную оценку территории поселения","учтена","учтена",{"$nulls":4},"учтена",{"$nulls":8},"учтена",{"$nulls":36},"учтена",{"$nulls":3},"учтена",{"$nulls":6},6]
[null,"ПК 2.3. Составлять технический план объектов капитального строительства с применением аппаратно-программных средств ",null,null,"учтена","учтена",{"$nulls":3},"учтена","учтена","учтена","учтена",{"$nulls":4},"учтена",{"$nulls":36},"учтена",{"$nulls":3},"учтена",{"$nulls":6},9]
[null,"ПК 2.4. Вносить данные в реестры информационных систем различного назначения ",null,null,"учтена","учтена",{"$nulls":5},"учтена","учтена","учтена","учтена",null,"учтена","учтена",{"$nulls":9},"учтена","учтена","учтена",{"$nulls":3},"учтена","учтена",{"$nulls":19},"учтена",{"$nulls":10},14]
["Вид деятельности 3. Вспомогательная деятельность в сфере государственного кадастрового учета и (или) государственной регистрации прав на объекты недвижимости, определения кадастровой стоимости ","ПК 3.1. Консультировать по вопросам регистрации прав на объекты недвижимости и предоставления сведений, содержащихся в Едином государственном реестре недвижимости (далее - ЕГРН)",null,null,"учтена","учтена",{"$nulls":14},"учтена",{"$nulls":8},"учтена",{"$nulls":3},"учтена","учтена",{"$nulls":12},"учтена","учтена","учтена","учтена",null,"учтена",null,"учтена","учтена","учтена",{"$nulls":8},14]
[null,"ПК 3.2. Осуществлять документационное сопровождение в сфере кадастрового учета и (или) государственной регистрации прав на объекты недвижимости ",{"$nulls":4},"учтена","учтена","учтена",{"$nulls":11},"учтена","учтена",{"$nulls":3},"учтена",{"$nulls":3},"учтена",{"$nulls":3},"учтена","учтена",{"$nulls":3},"учтена","учтена",{"$nulls":7},"учтена",{"$nulls":17},12]
[null,"ПК 3.3. Использовать информационную систему, предназначенную для ведения ЕГРН","учтена",{"$nulls":3},"учтена","учтена","учтена","учтена","учтена",{"$nulls":4},"учтена",{"$nulls":4},"учтена","учтена",{"$nulls":3},"учтена",null,"учтена","учтена","учтена","учтена","учтена","учтена",{"$nulls":5},"учтена","учтена","учтена","учтена","учтена","учтена","учтена","учтена","учтена","учтена",{"$nulls":17},26]
[null,"ПК 3.4. Осуществлять сбор, систематизацию и накопление информации, необходимой для определения кадастровой стоимости объектов недвижимости ",null,"учтена",null,null,"учтена","учтена","учтена","учтена","учтена",{"$nulls":3},"учтена","учтена","учтена","учтена",null,null,"учтена","учтена","учтена","учтена",{"$nulls":3},"учтена",{"$nulls":3},"учтена","учтена",{"$nulls":6},"учтена","учтена","учтена","учтена","учтена","учтена","учтена","учтена","учтена",{"$nulls":17},26]
["Вид деятельности 4. Осуществление контроля использования и охраны земельных ресурсов и окружающей среды, мониторинг земель ","ПК 4.1. Проводить проверки и обследования для обеспечения соблюдения требований законодательства Российской Федерации ",null,"учтена",{"$nulls":3},"учтена",{"$nulls":6},"учтена",null,null,"учтена",{"$nulls":9},"учтена",{"$nulls":3},"учтена","учтена",{"$nulls":6},"учтена","учтена","учтена","учтена","учтена","учтена","учтена","учтена","учтена",{"$nulls":9},"учтена",{"$nulls":7},17]
[null,"ПК 4.2. Проводить количественный и качественный учет земель, принимать участие в их инвентаризации и мониторинге ",null,"учтена",{"$nulls":3},"учтена",{"$nulls":3},"учтена","учтена","учтена","учтена",null,null,"учтена","учтена","учтена",{"$nulls":3},"учтена",{"$nulls":3},"учтена","учтена","учтена","учтена","учтена","учтена",{"$nulls":6},"учтена","учтена","учтена","учтена","учтена","учтена","учтена","учтена","учтена","учтена",{"$nulls":5},"учтена","учтена","учтена","учтена",{"$nulls":7},30]
[null,"ПК 4.3. Осуществлять контроль использования и охраны земельных ресурсов ",null,"учтена",{"$nulls":3},"учтена",{"$nulls":3},"учтена","учтена","учтена","учтена","учтена",{"$nulls":3},"учтена",{"$nulls":3},"учтена","учтена",null,null,"учтена","учтена",{"$nulls":3},"учтена",{"$nulls":6},"учтена","учтена","учтена","учтена","учтена","учтена","учтена","учтена","учтена","учтена",{"$nulls":5},"учтена","учтена",{"$nulls":4},"учтена",null,null,"учтена",null,27]
[null,"ПК 4.4. Разрабатывать природоохранные мероприятия",null,"учтена",{"$nulls":3},"учтена","учтена",{"$nulls":4},"учтена","учтена","учтена",{"$nulls":3},"учтена",{"$nulls":3},"учтена","учтена",null,null,"учтена","учтена",{"$nulls":3},"учтена",{"$nulls":6},"учтена","учтена","учтена","учтена","учтена","учтена","учтена","учтена","учтена","учтена",{"$nulls":5},"учтена","учтена",{"$nulls":4},"учтена",null,null,"учтена",null,26,{"$f":"(COUNTIF(BN80:BN97,\"0\")*100)/COUNTA(BN80:BN97)","v":{"v":0,"d":"0.00"}}]
[{"$nulls":27},"учтена","учтена",{"$nulls":3},"учтена"]
["ФГОС СПО 21.02.20 Прикладная геодезия"]
["Вид деятельности 1. Выполнение работ по проектированию, созданию и обработке опорных геодезических сетей, нивелирных сетей и сетей специального назначения","ПК 1.1. Проектировать геодезические сети","учтена","учтена","учтена","учтена","учтена","учтена",null,null,"учтена",{"$nulls":3},"учтена","учтена","учтена","учтена","учтена","учтена",{"$nulls":3},"учтена","учтена","учтена",null,"учтена","учтена","учтена","учтена","учтена","учтена","учтена","учтена","учтена","учтена","учтена",null,"учтена","учтена","учтена","учтена","учтена","учтена","учтена","учтена","учтена","учтена","учтена","учтена",null,"учтена","учтена","учтена","учтена","учтена","учтена",{"$nulls":7},{"$f":"COUNTIF(C100:BM100,\"учтена\")","v":45}]
[null,"ПК 1.2. Проводить исследования, поверки и юстировку геодезических приборов и систем","учтена","учтена","учтена","учтена",{"$nulls":4},"учтена",{"$nulls":3},"учтена","учтена","учтена","учтена","учтена","учтена",{"$nulls":3},"учтена","учтена","учтена",null,"учтена","учтена","учтена","учтена","учтена","учтена","учтена","учтена","учтена","учтена","учтена",null,"учтена","учтена","учтена","учтена","учтена","учтена","учтена","учтена","учтена","учтена","учтена","учтена",null,"учтена","учтена","учтена","учтена","учтена","учтена",{"$nulls":7},43]
[null,"ПК 1.3. Выполнять работы по полевому обследованию пунктов геодезических сетей","учтена","учтена","учтена","учтена",{"$nulls":4},"учтена",null,"учтена","учтена","учтена","учтена","учтена","учтена",{"$nulls":5},"учтена",{"$nulls":3},"учтена","учтена","учтена","учтена","учтена","учтена",{"$nulls":3},"учтена","учтена",null,"учтена","учтена","учтена","учтена","учтена","учтена","учтена","учтена","учтена","учтена","учтена","учтена",{"$nulls":5},"учтена","учтена",{"$nulls":7},34]
[null,"ПК 1.4. Использовать современные технологии определения местоположения пунктов геодезических сетей на основе спутниковой навигации, а также методы электронных измерений элементов  еодезических сетей","учтена",{"$nulls":5},"учтена","учтена","учтена",null,"учтена","учтена","учтена",null,null,"учтена",{"$nulls":5},"учтена",{"$nulls":6},"учтена","учтена","учтена",{"$nulls":3},"учтена","учтена",null,"учтена",{"$nulls":4},"учтена","учтена","учтена","учтена","учтена","учтена","учтена",{"$nulls":5},"учтена","учтена",{"$nulls":7},24]
[null,"ПК 1.5. Создавать опорные геодезические сети с помощью оптических, электронных и спутниковых геодезических приборов ",null,"учтена","учтена","учтена",{"$nulls":8},"учтена",null,null,"учтена",{"$nulls":5},"учтена",{"$nulls":6},"учтена","учтена","учтена",{"$nulls":3},"учтена","учтена","учтена","учтена",{"$nulls":4},"учтена","учтена","учтена","учтена","учтена","учтена","учтена",{"$nulls":5},"учтена","учтена",{"$nulls":7},22]
[null,"ПК 1.6. Проводить специальные геодезические измерения при эксплуатации поверхности и недр Земли",null,"учтена","учтена","учтена",{"$nulls":5},"учтена",null,null,"учтена",null,null,"учтена","учтена","учтена",{"$nulls":3},"учтена","учтена","учтена",{"$nulls":4},"учтена","учтена","учтена","учтена","учтена","учтена","учтена","учтена","учтена","учтена","учтена","учтена","учтена","учтена","учтена","учтена","учтена","учтена","учтена","учтена","учтена",{"$nulls":5},"учтена","учтена",{"$nulls":7},34]
[null,"ПК 1.7. Выполнять первичную математическую обработку результатов полевых геодезических измерений с использованием современных компьютерных программ, анализировать и устранять причины возникновения брака и грубых ошибок измерений",{"$nulls":3},"учтена",{"$nulls":5},"учтена",null,null,"учтена",{"$nulls":4},"учтена",{"$nulls":3},"учтена","учтена","учтена",null,"учтена","учтена","учтена","учтена","учтена","учтена","учтена","учтена","учтена","учтена","учтена","учтена","учтена","учтена","учтена",{"$nulls":3},"учтена","учтена","учтена","учтена","учтена","учтена",{"$nulls":5},"учтена","учтена",{"$nulls":7},30]
[null,"ПК 1.8. Осуществлять самостоятельный контроль результатов полевых и камеральных геодезических работ в соответствии с требованиями действующих нормативных документов ",{"$nulls":3},"учтена",{"$nulls":5},"учтена",null,null,"учтена","учтена","учтена",null,null,"учтена",{"$nulls":3},"учтена","учтена","учтена",null,"учтена","учтена","учтена","учтена","учтена","учтена","учтена","учтена","учтена","учтена","учтена","учтена","учтена","учтена","учтена",{"$nulls":8},"учтена",null,"учтена","учтена","учтена","учтена","учтена","учтена",{"$nulls":7},31]
["Вид деятельности 2. Выполнение топографических съемок различными методами, графическое и цифровое оформление результатов ","ПК 2.1. Создавать планово-высотное съемочноеобоснование с помощью оптических, электронных и спутниковых геодезических приборов",{"$nulls":3},"учтена",{"$nulls":5},"учтена",null,null,"учтена","учтена","учтена",null,null,"учтена","учтена","учтена","учтена","учтена","учтена","учтена",null,"учтена","учтена","учтена",null,null,"учтена",{"$nulls":4},"учтена","учтена","учтена","учтена","учтена","учтена","учтена","учтена",{"$nulls":5},"учтена",null,"учтена",{"$nulls":4},"учтена","учтена","учтена","учтена","учтена","учтена","учтена",null,33]
[null,"ПК 2.2. Использовать современные технологии получения полевой топографо-геодезической информации для картографирования территории страны и обновления существующего картографического фонда, включая геоинформационные и аэрокосмические технологии ","учтена",null,null,"учтена",{"$nulls":5},"учтена",{"$nulls":7},"учтена","учтена","учтена",{"$nulls":3},"учтена",null,"учтена","учтена","учтена",null,null,"учтена","учтена","учтена","учтена","учтена","учтена","учтена",{"$nulls":3},"учтена","учтена","учтена",{"$nulls":5},"учтена",null,"учтена",{"$nulls":4},"учтена","учтена","учтена","учтена","учтена","учтена","учтена",null,29]
[null,"ПК 2.3. Выполнять полевые и камеральные работы по топографическим съемкам местности, обновлению и созданию оригиналов топографических планов и карт в графическом и цифровом виде ","учтена",null,null,"учтена",{"$nulls":5},"учтена",{"$nulls":5},"учтена","учтена","учтена","учтена","учтена",{"$nulls":3},"учтена",null,"учтена","учтена","учтена",null,null,"учтена","учтена","учтена","учтена","учтена","учтена","учтена",{"$nulls":3},"учтена","учтена","учтена",{"$nulls":5},"учтена",null,"учтена",{"$nulls":4},"учтена","учтена","учтена","учтена","учтена","учтена","учтена",null,31]
[null,"ПК 2.4. Использовать компьютерные и спутниковые технологии для автоматизации полевых измерений и создания оригиналов топографических планов, осваивать инновационные методы  опографических работ","учтена",null,null,"учтена",null,null,"учтена","учтена",null,null,"учтена","учтена",{"$nulls":3},"учтена","учтена","учтена","учтена","учтена",{"$nulls":3},"учтена",null,"учтена","учтена","учтена","учтена","учтена","учтена","учтена","учтена",{"$nulls":7},"учтена","учтена","учтена",{"$nulls":5},"учтена",null,"учтена",{"$nulls":4},"учтена","учтена","учтена","учтена","учтена","учтена","учтена",null,32]
[null,"ПК 2.5. Собирать, систематизировать и анализировать топографо-геодезическую информацию для разработки проектов съемочных работ ","учтена",null,null,"учтена","учтена","учтена","учтена","учтена",null,null,"учтена","учтена",{"$nulls":3},"учтена","учтена","учтена","учтена","учтена",{"$nulls":3},"учтена",{"$nulls":5},"учтена","учтена","учтена","учтена",{"$nulls":4},"учтена","учтена","учтена","учтена","учтена","учтена",{"$nulls":5},"учтена",null,"учтена","учтена","учтена","учтена","учтена","учтена","учтена","учтена","учтена","учтена","учтена","учтена",null,37]
[null,"ПК 2.6. Соблюдать требования технических регламентов и инструкций по выполнению топографических съемок и камеральному оформлению оригиналов топографических планов ","учтена","учтена","учтена","учтена","учтена","учтена","учтена","учтена",{"$nulls":7},"учтена","учтена","учтена","учтена","учтена",{"$nulls":3},"учтена",{"$nulls":5},"учтена","учтена","учтена","учтена",{"$nulls":4},"учтена","учтена","учтена","учтена","учтена","учтена","учтена","учтена","учтена","учтена","учтена","учтена",null,"учтена","учтена","учтена","учтена","учтена","учтена",{"$nulls":5},"учтена",null,37]
["Вид деятельности 3. Организация работы коллектива исполнителей ","ПК 3.1. Разрабатывать мероприятия и организовывать работы по созданию геодезических, нивелирных сетей и сетей специального назначения, топографическим съемкам, при обработке  аэрокосмической информации, геодезическому сопровождению строительства и эксплуатации зданий, и инженерных сооружений ","учтена","учтена","учтена","учтена","учтена","учтена","учтена","учтена","учтена","учтена",null,null,"учтена","учтена","учтена",null,null,"учтена",{"$nulls":4},"учтена","учтена",null,"учтена","учтена","учтена",{"$nulls":3},"учтена","учтена",{"$nulls":8},"учтена","учтена",{"$nulls":7},"учтена","учтена","учтена","учтена","учтена","учтена",{"$nulls":5},"учтена",null,30]
[null,"ПК 3.2. Принимать решения по комплектованию бригад исполнителей и организации работы бригады","учтена","учтена","учтена","учтена","учтена","учтена",null,null,"учтена","учтена",null,null,"учтена","учтена","учтена",null,null,"учтена","учтена","учтена","учтена","учтена","учтена","учтена",null,"учтена","учтена","учтена","учтена","учтена","учтена","учтена","учтена",{"$nulls":8},"учтена","учтена",{"$nulls":7},"учтена","учтена","учтена","учтена","учтена","учтена",{"$nulls":5},"учтена",null,35]
[null,"ПК 3.3. Реализовывать мероприятия по повышению эффективности работ, направленных на снижение трудоемкости и повышение производительности труда ","учтена","учтена","учтена","учтена","учтена","учтена",null,null,"учтена","учтена",null,null,"учтена","учтена","учтена","учтена","учтена","учтена","учтена","учтена","учтена","учтена","учтена","учтена",null,"учтена","учтена","учтена","учтена","учтена","учтена","учтена","учтена",{"$nulls":4},"учтена","учтена","учтена","учтена","учтена","учтена",{"$nulls":11},"учтена","учтена",{"$nulls":5},"учтена",null,37]
["Вид деятельности 4. Создание и обновление цифровых топографических карт и планов на основе аэро- и космических снимков (по выбору)","ПК 4.1. Организовывать и выполнять работы по созданию и обновлению цифровых топографических карт и планов на основе аэрокосмической информации ","учтена","учтена","учтена","учтена","учтена","учтена","учтена",{"$nulls":4},"учтена","учтена","учтена","учтена","учтена","учтена","учтена","учтена","учтена",{"$nulls":3},"учтена",null,"учтена","учтена","учтена","учтена","учтена","учтена","учтена","учтена","учтена","учтена","учтена","учтена","учтена","учтена",{"$nulls":4},"учтена","учтена",{"$nulls":3},"учтена",{"$nulls":5},"учтена","учтена",{"$nulls":5},"учтена",null,37]
[null,"ПК 4.2. Организовывать и выполнять работу по топографическому дешифрированию аэро- и космических снимков ","учтена",{"$nulls":3},"учтена","учтена","учтена",{"$nulls":11},"учтена","учтена",{"$nulls":3},"учтена",{"$nulls":4},"учтена","учтена","учтена",{"$nulls":6},"учтена","учтена",{"$nulls":4},"учтена","учтена",{"$nulls":3},"учтена",null,"учтена","учтена","учтена","учтена","учтена","учтена","учтена","учтена","учтена","учтена","учтена","учтена",null,27]
[null,"ПК 4.3. Использовать геоинформационные системы и технологии при создании и обновлении топографических карт и планов ","учтена","учтена","учтена",{"$nulls":3},"учтена",{"$nulls":11},"учтена","учтена",{"$nulls":3},"учтена",{"$nulls":4},"учтена",{"$nulls":8},"учтена","учтена",{"$nulls":9},"учтена",null,"учтена","учтена","учтена","учтена",null,null,"учтена","учтена","учтена","учтена","учтена","учтена",null,21]
["Вид деятельности 4. Проведение работ по\nгеодезическому\nсопровождению\nстроительства и\nэксплуатации зданий и\nинженерных сооружений\n(по выбору)","ПК 4.1. Выполнять проектирование и производство геодезических изысканий объектов строительства",null,null,"учтена",{"$nulls":3},"учтена",{"$nulls":11},"учтена","учтена",{"$nulls":3},"учтена",{"$nulls":4},"учтена",{"$nulls":6},"учтена","учтена","учтена","учтена","учтена","учтена","учтена","учтена",{"$nulls":5},"учтена",null,"учтена","учтена","учтена","учтена",null,null,"учтена","учтена","учтена","учтена","учтена","учтена",null,25]
[null,"ПК 4.2. Выполнять подготовку геодезической подосновы для проектирования и разработки генеральных планов объектов строительства ",null,null,"учтена","учтена","учтена","учтена",{"$nulls":5},"учтена",{"$nulls":6},"учтена","учтена","учтена","учтена","учтена","учтена",null,"учтена","учтена","учтена","учтена","учтена","учтена",{"$nulls":4},"учтена","учтена","учтена","учтена","учтена","учтена","учтена","учтена","учтена","учтена",{"$nulls":3},"учтена",null,"учтена","учтена","учтена","учтена",null,null,"учтена","учтена",null,null,"учтена","учтена",null,36]
[null,"ПК 4.3. Проводить крупномасштабные топографические съемки для создания изыскательских планов, в том числе съемку подземных коммуникаций ",{"$nulls":3},"учтена","учтена","учтена",null,"учтена",null,null,"учтена","учтена",{"$nulls":6},"учтена","учтена","учтена","учтена","учтена","учтена",null,"учтена","учтена","учтена","учтена","учтена","учтена","учтена","учтена","учтена","учтена","учтена","учтена","учтена","учтена","учтена","учтена","учтена","учтена","учтена","учтена","учтена","учтена","учтена","учтена",null,"учтена","учтена","учтена","учтена","учтена","учтена","учтена","учтена",null,null,"учтена","учтена",null,46]
[null,"ПК 4.4. Выполнять геодезические изыскательские работы, полевое и камеральное трассирование линейных сооружений, вертикальную планировку ","учтена","учтена",{"$nulls":3},"учтена",null,"учтена",null,null,"учтена","учтена","учтена","учтена","учтена","учтена","учтена","учтена",null,null,"учтена","учтена","учтена","учтена",null,"учтена","учтена","учтена",{"$nulls":3},"учтена","учтена","учтена","учтена","учтена","учтена","учтена",{"$nulls":3},"учтена","учтена",{"$nulls":3},"учтена","учтена","учтена",null,"учтена",{"$nulls":3},"учтена","учтена","учтена","учтена",null,null,"учтена","учтена",null,38]
[null,"ПК 4.5. Участвовать в разработке и осуществлении проектов производства геодезических работ в строительстве ","учтена","учтена","учтена",{"$nulls":3},"учтена","учтена","учтена",{"$nulls":8},"учтена",null,null,"учтена","учтена","учтена","учтена",null,"учтена","учтена","учтена",{"$nulls":3},"учтена",{"$nulls":4},"учтена","учтена",{"$nulls":3},"учтена","учтена",{"$nulls":3},"учтена","учтена","учтена",null,"учтена",{"$nulls":3},"учтена","учтена","учтена","учтена",null,null,"учтена","учтена",null,29]
[null,"ПК 4.6. Выполнять полевые геодезические работы на строительной площадке: вынос в натуру проектов зданий, инженерных сооружений, проведение обмерных работ и исполнительных съемок,  составление исполнительной документации","учтена","учтена","учтена",{"$nulls":5},"учтена",{"$nulls":8},"учтена","учтена","учтена","учтена",{"$nulls":4},"учтена","учтена","учтена","учтена","учтена","учтена","учтена",{"$nulls":4},"учтена","учтена","учтена",{"$nulls":7},"учтена","учтена","учтена",null,"учтена",{"$nulls":3},"учтена","учтена","учтена","учтена",null,null,"учтена","учтена",null,28]
[null,"ПК 4.7. Выполнять полевой контроль сохранения проектной геометрии в процессе ведения строительно-монтажных работ","учтена","учтена","учтена","учтена","учтена","учтена",null,null,"учтена",{"$nulls":3},"учтена","учтена",{"$nulls":4},"учтена","учтена","учтена",{"$nulls":4},"учтена","учтена","учтена","учтена","учтена","учтена","учтена","учтена","учтена","учтена","учтена","учтена","учтена","учтена",{"$nulls":4},"учтена","учтена","учтена","учтена","учтена","учтена",null,"учтена","учтена","учтена","учтена","учтена","учтена","учтена","учтена",{"$nulls":5},40]
[null,"ПК 4.8. Использовать специальные геодезические приборы и инструменты, включая современные электронные тахеометры и приборы спутниковой навигации, предназначенные для решения задач прикладной геодезии, выполнять их исследование, поверки и юстировку ","учтена",null,null,"учтена","учтена","учтена","учтена","учтена","учтена",{"$nulls":3},"учтена","учтена",{"$nulls":4},"учтена","учтена","учтена",{"$nulls":7},"учтена","учтена","учтена","учтена",{"$nulls":5},"учтена","учтена","учтена","учтена","учтена","учтена","учтена","учтена",{"$nulls":3},"учтена",null,"учтена","учтена","учтена","учтена","учтена","учтена","учтена","учтена",{"$nulls":5},33]
[null,"ПК 4.9. Выполнять специализированные геодезические работы при эксплуатации инженерных объектов, в том числе наблюдения за деформациями зданий и инженерных сооружений и опасными геодинамическими процессами","учтена","учтена","учтена",null,null,"учтена","учтена","учтена","учтена",{"$nulls":3},"учтена","учтена","учтена","учтена","учтена","учтена","учтена","учтена","учтена",{"$nulls":4},"учтена","учтена","учтена","учтена","учтена","учтена","учтена",{"$nulls":5},"учтена","учтена","учтена","учтена","учтена","учтена","учтена","учтена",{"$nulls":3},"учтена",null,"учтена","учтена","учтена","учтена","учтена","учтена","учтена","учтена",{"$nulls":5},40,{"$f":"(COUNTIF(BN100:BN128,\"0\")*100)/COUNTA(BN100:BN128)","v":{"v":0,"d":"0.00"}}]
[]
["ФГОС СПО 21.02.14 Маркшейдерское дело"]
["Вид деятельности 1. Геодезическое обеспечение картографирования территории","ПК 1.1. Производить полевые топографо-геодезические работы для обеспечения картографирования территории",{"$nulls":3},"учтена",null,"учтена",null,"учтена","учтена",{"$nulls":9},"учтена","учтена",null,null,"учтена","учтена",null,"учтена","учтена",{"$nulls":3},"учтена","учтена","учтена",null,null,"учтена","учтена","учтена",{"$nulls":5},"учтена","учтена","учтена","учтена","учтена","учтена",{"$nulls":5},"учтена","учтена","учтена","учтена",{"$nulls":5},{"$f":"COUNTIF(C131:BM131,\"учтена\")","v":26}]
[null,"ПК 1.2. Выполнять камеральную обработку результатов топографо-геодезических работ",{"$nulls":5},"учтена",null,"учтена",{"$nulls":3},"учтена",{"$nulls":13},"учтена","учтена",{"$nulls":3},"учтена","учтена","учтена",null,null,"учтена","учтена","учтена",{"$nulls":8},"учтена","учтена","учтена",{"$nulls":5},"учтена","учтена","учтена","учтена",{"$nulls":5},18]
[null,"ПК 1.3. Строить маркшейдерскую опорную и съемочные сети",{"$nulls":11},"учтена",{"$nulls":13},"учтена","учтена",{"$nulls":3},"учтена","учтена","учтена",null,null,"учтена","учтена","учтена",{"$nulls":8},"учтена","учтена","учтена",{"$nulls":5},"учтена","учтена","учтена","учтена",{"$nulls":5},16]
[null,"ПК 1.4. Применять спутниковые методы создания геодезических сетей и определения координат и высот точек местности",{"$nulls":25},"учтена","учтена",{"$nulls":3},"учтена","учтена","учтена",null,null,"учтена","учтена","учтена",{"$nulls":16},"учтена","учтена","учтена","учтена",{"$nulls":5},12]
[null,"ПК 1.5. Составлять топографические карты, планы и разрезы местности",{"$nulls":3},"учтена",{"$nulls":21},"учтена","учтена",{"$nulls":3},"учтена","учтена","учтена","учтена","учтена","учтена","учтена","учтена",{"$nulls":16},"учтена","учтена","учтена","учтена",{"$nulls":5},15]
["Вид деятельности 2. Маркшейдерское обеспечение ведения горных работ и контроль сохранности недр","ПК 2.1. Создавать геодезические и маркшейдерские сети",{"$nulls":3},"учтена",{"$nulls":8},"учтена","учтена","учтена",{"$nulls":5},"учтена","учтена",{"$nulls":8},"учтена","учтена","учтена","учтена","учтена","учтена","учтена","учтена",{"$nulls":8},"учтена","учтена","учтена",{"$nulls":5},"учтена","учтена","учтена","учтена","учтена","учтена","учтена","учтена",null,25]
[null,"ПК 2.2. Выполнять горно-геометрические, съемочные и разбивочные работы, задания направления проходки горным выработкам, учет объемов горных и строительных работ",{"$nulls":3},"учтена",{"$nulls":8},"учтена",{"$nulls":3},"учтена","учтена",null,null,"учтена","учтена",{"$nulls":8},"учтена",{"$nulls":6},"учтена",{"$nulls":8},"учтена","учтена","учтена",{"$nulls":5},"учтена","учтена","учтена","учтена","учтена","учтена","учтена","учтена",null,19]
[null,"ПК 2.3. Выносить границы горных отводов, опасных зон ведения горных работ, предохранительных целиков, мест расположения породных отвалов и хвостохранилищ",{"$nulls":3},"учтена",null,null,"учтена","учтена",{"$nulls":8},"учтена","учтена","учтена","учтена","учтена","учтена","учтена","учтена",{"$nulls":6},"учтена",{"$nulls":6},"учтена","учтена","учтена","учтена","учтена","учтена","учтена","учтена","учтена","учтена","учтена","учтена",{"$nulls":5},"учтена","учтена",{"$nulls":4},"учтена","учтена",null,28]
[null,"ПК 2.4. Оформлять горную графическую документацию",null,"учтена","учтена","учтена",null,null,"учтена","учтена",{"$nulls":8},"учтена","учтена","учтена","учтена","учтена","учтена","учтена","учтена",{"$nulls":3},"учтена","учтена","учтена","учтена",{"$nulls":6},"учтена","учтена","учтена","учтена","учтена","учтена","учтена","учтена","учтена","учтена","учтена","учтена",null,"учтена","учтена","учтена","учтена","учтена","учтена",{"$nulls":4},"учтена","учтена",null,37]
[null,"ПК 2.5. Выполнять расчет параметров сдвижения горных пород при подземном и открытом способах разработки",null,null,"учтена","учтена",null,null,"учтена","учтена",{"$nulls":10},"учтена","учтена","учтена","учтена","учтена","учтена",null,"учтена","учтена","учтена","учтена","учтена",{"$nulls":11},"учтена","учтена","учтена","учтена",null,null,"учтена","учтена",null,"учтена","учтена","учтена","учтена","учтена","учтена",{"$nulls":4},"учтена","учтена",null,29]
[null,"ПК 2.6. Проводить учет полноты и качества извлечения полезного ископаемого, состояния и движения запасов, потерь и разубоживания полезных ископаемых",{"$nulls":13},"учтена","учтена",{"$nulls":3},"учтена","учтена","учтена",null,"учтена","учтена",null,"учтена","учтена",{"$nulls":14},"учтена","учтена","учтена","учтена",null,null,"учтена","учтена",null,"учтена","учтена",{"$nulls":3},"учтена",{"$nulls":4},"учтена","учтена",null,20]
["Вид деятельности 3. Организация технологических процессов при ведении горных работ ","ПК 3.1. Планировать ведение горных работ","учтена",{"$nulls":3},"учтена","учтена",null,null,"учтена","учтена","учтена",null,"учтена","учтена","учтена",{"$nulls":3},"учтена",{"$nulls":3},"учтена","учтена",null,"учтена","учтена",{"$nulls":3},"учтена","учтена","учтена","учтена","учтена","учтена","учтена",{"$nulls":4},"учтена","учтена","учтена","учтена","учтена","учтена","учтена","учтена",null,"учтена","учтена",{"$nulls":3},"учтена",{"$nulls":4},"учтена","учтена",null,34]
[null,"ПК 3.2. Проводить контроль за соблюдением проектов горных и строительных работ","учтена",{"$nulls":3},"учтена","учтена",null,null,"учтена","учтена","учтена","учтена",{"$nulls":3},"учтена","учтена","учтена","учтена",{"$nulls":6},"учтена","учтена",{"$nulls":3},"учтена","учтена","учтена",{"$nulls":3},"учтена","учтена","учтена","учтена",{"$nulls":3},"учтена","учтена","учтена","учтена","учтена","учтена",null,"учтена","учтена",{"$nulls":3},"учтена",{"$nulls":4},"учтена","учтена",null,31]
[null,"ПК 3.3. Проводить контроль за соблюдением проектов работ по отвалообразованию пустых пород и складированию полезного ископаемого","учтена",{"$nulls":3},"учтена","учтена","учтена","учтена","учтена",{"$nulls":9},"учтена",null,null,"учтена",{"$nulls":3},"учтена","учтена",{"$nulls":3},"учтена","учтена","учтена",{"$nulls":3},"учтена","учтена","учтена","учтена",{"$nulls":8},"учтена",null,"учтена","учтена",{"$nulls":3},"учтена","учтена","учтена","учтена","учтена","учтена","учтена",null,27]
[null,"ПК 3.4. Оформлять техническую документацию","учтена","учтена","учтена","учтена",null,null,"учтена","учтена","учтена",{"$nulls":3},"учтена","учтена","учтена",{"$nulls":3},"учтена",null,null,"учтена",{"$nulls":5},"учтена","учтена","учтена","учтена","учтена","учтена",{"$nulls":3},"учтена","учтена","учтена","учтена",{"$nulls":8},"учтена",null,"учтена","учтена","учтена","учтена","учтена","учтена","учтена","учтена","учтена","учтена","учтена","учтена",null,35]
[null,"ПК 3.5. Планировать мероприятия, направленные на повышение производительности труда",null,null,"учтена","учтена","учтена",{"$nulls":7},"учтена","учтена","учтена",{"$nulls":3},"учтена","учтена","учтена","учтена",{"$nulls":9},"учтена","учтена",{"$nulls":3},"учтена",{"$nulls":11},"учтена",{"$nulls":4},"учтена","учтена","учтена","учтена",{"$nulls":6},18]
["Вид деятельности 4. оОбеспечение функционирования системы управления охраной труда и промышленной безопасностью","ПК 4.1. Организовывать работу по обеспечению функционирования системы управления охраной труда при ведении горных работ",null,null,"учтена",{"$nulls":15},"учтена","учтена","учтена","учтена",{"$nulls":14},"учтена",{"$nulls":11},"учтена",{"$nulls":4},"учтена","учтена","учтена","учтена",{"$nulls":6},11]
[null,"ПК 4.2. Проводить мероприятия, направленные на снижение профессиональных рисков",null,null,"учтена",null,null,"учтена",{"$nulls":3},"учтена","учтена","учтена",{"$nulls":3},"учтена","учтена","учтена","учтена","учтена","учтена","учтена",{"$nulls":11},"учтена","учтена","учтена","учтена",{"$nulls":3},"учтена","учтена","учтена",{"$nulls":5},"учтена",null,"учтена","учтена","учтена",{"$nulls":3},"учтена",{"$nulls":6},24]
[null,"ПК 4.3. Осуществлять производственный контроль за соблюдением требований промышленной безопасности при выполнении геодезических и маркшейдерских работ","учтена","учтена","учтена",null,null,"учтена","учтена","учтена","учтена","учтена","учтена","учтена",{"$nulls":3},"учтена","учтена","учтена","учтена","учтена","учтена","учтена","учтена","учтена",null,"учтена","учтена","учтена","учтена","учтена","учтена",null,null,"учтена","учтена","учтена","учтена","учтена","учтена","учтена","учтена","учтена","учтена","учтена","учтена",{"$nulls":3},"учтена",null,"учтена","учтена","учтена",{"$nulls":3},"учтена","учтена","учтена","учтена","учтена","учтена",null,47,{"$f":"(COUNTIF(BN131:BN149,\"0\")*100)/COUNTA(BN131:BN149)","v":{"v":0,"d":"0.00"}}]
[null,null,{"$f":"COUNTIF(C7:C149,\"учтена\")","v":48},46,45,54,46,61,54,34,36,39,45,58,50,35,33,46,34,45,49,38,32,41,33,44,null,{"$f":"COUNTIF(AB7:AB149,\"учтена\")","v":57},52,48,41,41,65,51,43,21,32,45,48,59,54,45,47,49,57,45,54,41,46,45,63,null,"учтена","учтена","учтена","учтена","учтена","учтена","учтена","учтена","учтена","учтена","учтена","учтена"]
[null,"% ТФ, учтенных во ФГОС СПО, от общего количества ТФ модуля компетенции",{"$nulls":23},{"$f":"(COUNTIF(C150:Z150,\"0\")*100)/COLUMNS(C150:Z150)","v":{"v":0,"d":"0.0"}},{"$nulls":24},{"$f":"(COUNTIF(AB150:AY150,\"0\")*100)/COLUMNS(AB150:AY150)","v":{"v":0,"d":"0.0"}},{"$nulls":12},{"$f":"(COUNTIF(BA150:BL150,\"0\")*100)/COLUMNS(BA150:BL150)","v":{"v":0,"d":"0.0"}}]
[]
["Вывод:","В части основных модулей компетенции","В части вариативных модулей компетенции"]
["1. Содержание всех модулей соответствует \nФГОС СПО"]
["2. Перечень модулей компетенции, содержание которых не соответствует ФГОС СПО"]
["3. Предложения по учету содержания модулей компетенции (п.2) в образовательных программах по профессиям/ специальностям СПО"]

{"sheet":"Лист2","index":1,"n_rows":5,"n_cols":6,"rows_kept":5}
[]
[]
[]
[]
[{"$nulls":5},"учтена"]